bitfinex/quotes_SOLUSD_20260120
["timestamp","ask_amount","ask_price","bid_price","bid_amount"]
[1768918412164,7.75170706,129.01,128.97,3.69664222]
[1768918413158,7.75170706,129.01,128.91,38.78443857]
[1768918413159,7.75103146,129.02,128.98,3.69664222]
[1768918413358,5.31698725,129.01,128.98,3.69664222]
[1768918413562,7.75103146,129.02,128.98,3.69664222]
[1768918413765,5.31714215,129.01,128.98,3.69664222]
[1768918413953,7.75103146,129.02,128.98,3.69664222]
[1768918414157,5.31714215,129.01,128.98,3.69664222]
[1768918414348,7.75103146,129.02,128.98,3.69664222]
[1768918414539,5.31764647,129.01,128.98,3.69664222]
[1768918414738,7.75103146,129.02,128.98,3.69664222]
[1768918414940,5.31764647,129.01,128.98,3.69664222]
[1768918415164,7.75103146,129.02,128.98,3.69664222]
[1768918415357,5.31772712,129.01,128.98,3.69664222]
[1768918415556,7.75103146,129.02,128.98,3.69664222]
[1768918415764,7.75103146,129.02,128.95,19.38698245]
[1768918415765,5.31829405,129.01,128.99,3.69664222]
[1768918415956,17.62333804,129.03,128.99,3.69664222]
[1768918418266,9.87290072,129.03,129.0,3.69664222]
[1768918421777,9.87290072,129.03,128.98,7.7528936]
[1768918422077,9.87290072,129.03,129.0,3.69664222]
[1768918422379,5.3245444,129.02,129.0,3.69664222]
[1768918422871,9.87290072,129.03,129.0,3.69664222]
[1768918423054,5.3245444,129.02,129.0,3.69664222]
[1768918423253,9.87290072,129.03,129.0,3.69664222]
[1768918423469,5.32684214,129.02,129.0,3.69664222]
[1768918423680,9.87290072,129.03,129.0,3.69664222]
[1768918423863,5.32656852,129.02,129.0,3.69664222]
[1768918424175,9.87290072,129.03,129.0,3.69664222]
[1768918424377,5.32633582,129.02,128.99,3.69664222]
[1768918424571,9.87290072,129.03,128.99,3.69664222]
[1768918424778,5.32901968,129.02,128.99,3.69664222]
[1768918425076,9.87290072,129.03,128.99,3.69664222]
[1768918425279,5.32881222,129.02,128.99,3.69664222]
[1768918425451,9.87290072,129.03,128.99,3.69664222]
[1768918425650,5.32881391,129.02,128.99,3.69664222]
[1768918425870,9.87290072,129.03,128.99,3.69664222]
[1768918426062,5.32881222,129.02,128.99,11.44914623]
[1768918426375,9.87290072,129.03,128.99,11.44914623]
[1768918426566,5.33107599,129.02,128.99,11.44914623]
[1768918426770,9.87290072,129.03,128.99,11.44914623]
[1768918427078,5.33107599,129.02,128.99,11.44914623]
[1768918427272,9.87290072,129.03,128.99,11.44914623]
[1768918427485,5.33230532,129.02,128.99,11.44914623]
[1768918427686,9.87290072,129.03,128.99,11.44914623]
[1768918427890,5.33230532,129.02,128.99,11.44914623]
[1768918428066,9.87290072,129.03,128.99,11.44914623]
[1768918428294,5.33315623,129.02,128.99,11.44914623]
[1768918428483,9.87290072,129.03,128.99,11.44914623]
[1768918428688,5.33315454,129.02,128.99,11.44914623]
[1768918428857,9.87290072,129.03,128.99,11.44914623]
[1768918429057,5.33315623,129.02,128.99,11.44914623]
[1768918429281,5.33315623,129.01,129.0,3.69664222]
[1768918429583,5.33315623,129.02,129.0,3.69664222]
[1768918430079,5.33315623,129.01,129.0,3.69664222]
[1768918430282,5.33315623,129.02,128.98,3.69664222]
[1768918430461,9.87290072,129.03,128.98,3.69664222]
[1768918430663,5.21004741,129.02,128.99,3.69664222]
[1768918431982,5.21004741,129.02,128.99,11.44899333]
[1768918432183,5.21004741,129.02,128.99,7.75235111]
[1768918432389,5.21004741,129.02,128.99,11.44915784]
[1768918433288,5.21004741,129.02,128.99,3.69664222]
[1768918434669,5.21004741,129.02,128.99,11.44903317]
[1768918438889,9.87290072,129.03,128.99,11.44903317]
[1768918439261,13.56954294,129.03,128.96,16.98]
[1768918439562,8.91654598,129.02,128.96,7.75397596]
[1768918439765,5.21990376,129.01,128.96,11.45061818]
[1768918440491,5.21990376,129.01,128.97,7.75370947]
[1768918442175,5.21990376,129.0,128.96,11.45070121]
[1768918443078,3.69664222,129.02,128.96,11.45070121]
[1768918443279,5.22256902,129.01,128.96,11.45070121]
[1768918443480,5.22256902,129.0,128.96,11.45070121]
[1768918443795,3.69664222,129.02,128.96,11.45070121]
[1768918443963,5.22273972,129.01,128.96,11.45070121]
[1768918444161,5.22273972,129.0,128.96,7.75405899]
[1768918444362,5.22273972,129.0,128.96,11.45070121]
[1768918444778,5.22273972,128.99,128.95,11.45108215]
[1768918449379,11.44802117,129.01,128.96,3.69664222]
[1768918449581,5.2231134,129.0,128.96,3.69664222]
[1768918449893,5.2231134,128.99,128.95,7.75443993]
[1768918450094,11.44802117,129.01,128.96,3.69664222]
[1768918450293,5.22295492,129.0,128.96,3.69664222]
[1768918450485,11.44802117,129.01,128.96,3.69664222]
[1768918450486,5.22295492,128.99,128.96,3.69664222]
[1768918450818,7.75137895,129.01,128.97,3.69664222]
[1768918450998,5.22290147,129.0,128.97,3.69664222]
[1768918451295,5.22290147,128.99,128.97,3.69664222]
[1768918451487,7.75137895,129.01,128.97,3.69664222]
[1768918451788,5.22274975,129.0,128.97,3.69664222]
[1768918451987,5.22274975,128.99,128.97,3.69664222]
[1768918452194,7.75137895,129.01,128.97,3.69664222]
[1768918452398,5.22280284,129.0,128.97,3.69664222]
[1768918452691,5.22280284,128.99,128.97,3.69664222]
[1768918452897,7.75137895,129.01,128.97,3.69664222]
[1768918453080,5.22280284,129.0,128.97,3.69664222]
[1768918453395,5.22280284,128.99,128.97,3.69664222]
[1768918453595,7.75137895,129.01,128.97,3.69664222]
[1768918453796,5.22285761,129.0,128.97,3.69664222]
[1768918453998,5.22285761,128.99,128.97,3.69664222]
[1768918454199,7.75137895,129.01,128.97,3.69664222]
[1768918454401,5.22291618,129.0,128.97,3.69664222]
[1768918454694,5.22291618,128.99,128.97,3.69664222]
[1768918454904,7.75137895,129.01,128.97,3.69664222]
[1768918455100,5.22291618,129.0,128.97,3.69664222]
[1768918455397,5.22291618,128.99,128.97,3.69664222]
[1768918455706,7.75137895,129.01,128.97,3.69664222]
[1768918455905,5.22304983,129.0,128.97,3.69664222]
[1768918456082,5.22304983,128.99,128.97,3.69664222]
[1768918456374,7.75137895,129.01,128.97,3.69664222]
[1768918456579,5.2231879,129.0,128.97,3.69664222]
[1768918456805,5.2231879,128.99,128.97,3.69664222]
[1768918456986,7.75137895,129.01,128.97,3.69664222]
[1768918457188,5.22318585,129.0,128.96,3.69664222]
[1768918457496,5.22318585,128.99,128.96,3.69664222]
[1768918457805,11.44802117,129.01,128.96,3.69664222]
[1768918458102,5.22336909,129.0,128.96,3.69664222]
[1768918458320,5.22336909,128.99,128.96,3.69664222]
[1768918458490,11.44802117,129.01,128.96,3.69664222]
[1768918458684,5.22336566,129.0,128.96,3.69664222]
[1768918458908,5.22336566,128.99,128.97,3.69651243]
[1768918459096,11.44789138,129.01,128.97,3.69651243]
[1768918459280,5.22345835,129.0,128.97,3.69651243]
[1768918459581,5.22345835,128.99,128.97,3.69651243]
[1768918459776,11.44789138,129.01,128.97,3.69651243]
[1768918459978,5.2233466,129.0,128.96,3.69651243]
[1768918460193,5.2233466,128.99,128.96,3.69651243]
[1768918460394,11.44789138,129.01,128.96,3.69651243]
[1768918460707,5.22333002,129.0,128.96,3.69651243]
[1768918460887,5.22333002,128.99,128.96,3.69651243]
[1768918463604,11.44815084,129.01,128.96,3.69651243]
[1768918463908,5.22233496,129.0,128.97,3.69651243]
[1768918464211,5.22233496,128.99,128.97,3.69651243]
[1768918464386,7.75163841,129.01,128.97,3.69651243]
[1768918464587,5.22228279,129.0,128.97,3.69651243]
[1768918464805,5.22228279,128.99,128.97,3.69651243]
[1768918465006,7.75163841,129.01,128.97,3.69651243]
[1768918465206,5.22228074,129.0,128.97,3.69651243]
[1768918465509,5.22228074,128.99,128.97,3.69651243]
[1768918465710,7.75163841,129.01,128.97,3.69651243]
[1768918465914,5.22230217,129.0,128.97,3.69651243]
[1768918466100,5.22230217,128.99,128.97,3.69651243]
[1768918466301,7.75163841,129.01,128.97,3.69651243]
[1768918466598,5.22234798,129.0,128.97,3.69651243]
[1768918466800,5.22234798,128.99,128.97,3.69651243]
[1768918467099,7.75163841,129.01,128.97,3.69651243]
[1768918467291,5.22235032,129.0,128.97,3.69651243]
[1768918467485,5.22235032,128.99,128.97,3.69651243]
[1768918467690,11.44815084,129.01,128.95,7.75489295]
[1768918467990,5.22243241,129.0,128.96,3.69651243]
[1768918468189,5.22243241,128.99,128.96,3.69651243]
[1768918468390,11.44815084,129.01,128.96,3.69651243]
[1768918468595,5.22252773,129.0,128.96,3.69651243]
[1768918468796,5.22252773,128.99,128.96,3.69651243]
[1768918469002,30.8264936,129.01,128.96,3.69651243]
[1768918469192,8.91904334,129.0,128.95,3.69651243]
[1768918469514,5.22253091,128.99,128.94,24.7351528]
[1768918469692,5.22253091,128.99,128.96,3.69651243]
[1768918470021,30.8264936,129.01,128.96,3.69651243]
[1768918470229,5.22272447,129.0,128.96,3.69651243]
[1768918470526,5.22272447,128.99,128.96,3.69651243]
[1768918470729,30.8264936,129.01,128.96,3.69651243]
[1768918470918,5.22275409,129.0,128.96,3.69651243]
[1768918471222,5.22275409,128.99,128.94,7.7551528]
[1768918471430,5.22275409,128.98,128.95,3.69651243]
[1768918471792,11.44872042,129.0,128.95,3.69651243]
[1768918471992,5.22283545,128.99,128.95,3.69651243]
[1768918472188,5.22283545,128.98,128.94,11.45166523]
[1768918472407,11.44872042,129.0,128.94,11.45166523]
[1768918472593,5.22278178,128.99,128.94,11.45166523]
[1768918472793,5.22278178,128.98,128.94,11.45166523]
[1768918474002,5.22278178,128.98,128.94,3.69651243]
[1768918476110,3.69651243,128.99,128.94,11.45161013]
[1768918476311,5.22318412,128.98,128.94,11.45161013]
[1768918483236,11.44908693,128.99,128.94,11.45161013]
[1768918483412,5.22720116,128.98,128.94,11.45161013]
[1768918483612,11.44908693,128.99,128.95,3.69651243]
[1768918483812,5.22720219,128.98,128.95,3.69651243]
[1768918484036,11.44908693,128.99,128.95,3.69651243]
[1768918484214,5.22720116,128.98,128.95,3.69651243]
[1768918484536,5.22720116,128.97,128.95,3.69651243]
[1768918484744,7.7525745,128.99,128.95,3.69651243]
[1768918485841,11.44876042,129.0,128.96,3.69651243]
[1768918486037,25.91803792,129.01,128.91,17.0]
[1768918486038,14.29120865,129.01,128.98,3.69651243]
[1768918486230,14.29120865,129.01,128.95,7.75487627]
[1768918486428,7.75151349,129.01,128.97,3.69651243]
[1768918490325,11.44802592,129.01,128.96,3.69651243]
[1768918495749,3.69651243,129.0,128.95,3.69651243]
[1768918496047,3.69651243,128.99,128.94,3.69651243]
[1768918496646,5.23157945,128.98,128.94,3.69651243]
[1768918496848,5.23157945,128.97,128.94,3.69651243]
[1768918497150,3.69651243,128.99,128.94,3.69651243]
[1768918497351,5.23131657,128.98,128.94,3.69651243]
[1768918497554,5.23131657,128.97,128.94,3.69651243]
[1768918497728,11.44965245,128.98,128.93,3.69651243]
[1768918497929,8.92791912,128.97,128.92,3.69651243]
[1768918498135,8.92791912,128.96,128.91,28.45378646]
[1768918498337,3.69651243,128.96,128.91,20.69651243]
[1768918498535,3.69651243,128.96,128.91,3.69651243]
[1768918498737,5.23065416,128.95,128.91,3.69651243]
[1768918500536,16.6821551,128.95,128.9,3.69651243]
[1768918500744,3.69651243,128.93,128.88,3.69651243]
[1768918500936,8.92716659,128.92,128.87,11.45582561]
[1768918501256,5.17092076,128.91,128.87,3.69651243]
[1768918501447,3.63651244,128.92,128.87,11.4561825]
[1768918501748,43.02209321,128.95,128.88,3.69651243]
[1768918501953,3.69651243,128.94,128.89,3.69651243]
[1768918502253,11.45248421,128.94,128.89,3.69651243]
[1768918502956,28.72740954,128.95,128.84,17.0]
[1768918502957,11.45174427,128.95,128.9,3.69651243]
[1768918503138,7.75523184,128.95,128.91,3.69651243]
[1768918504658,11.45174427,128.95,128.9,3.69651243]
[1768918506555,3.69651243,128.96,128.9,3.69651243]
[1768918506733,3.69651243,128.96,128.91,3.69651243]
[1768918508050,11.4514562,128.95,128.9,3.69651243]
[1768918508248,3.69651243,128.94,128.89,3.69651243]
[1768918508449,3.69651243,128.93,128.88,3.69651243]
[1768918508648,53.48235331,128.95,128.85,27.16336824]
[1768918508959,3.69651243,128.92,128.87,3.69651243]
[1768918509160,53.48235331,128.95,128.85,27.16336824]
[1768918509161,53.48235331,128.95,128.88,3.69651243]
[1768918509359,3.69651243,128.93,128.88,3.69651243]
[1768918509736,11.45320664,128.93,128.88,3.69651243]
[1768918513660,7.75669421,128.93,128.89,3.69651243]
[1768918514048,3.69651243,128.92,128.86,7.76014912]
[1768918514256,3.69651243,128.92,128.87,3.69651243]
[1768918515370,11.45371557,128.92,128.87,3.69651243]
[1768918517470,11.45371557,128.92,128.85,3.69651243]
[1768918517471,11.45446433,128.9,128.85,3.69651243]
[1768918517857,3.69651243,128.89,128.84,3.69651243]
[1768918518267,7.7579519,128.9,128.84,7.76150732]
[1768918518268,3.69651243,128.88,128.84,7.76150732]
[1768918519257,3.69651243,128.91,128.86,3.69651243]
[1768918519951,11.45390359,128.91,128.86,3.69651243]
[1768918520869,11.45967509,128.91,128.86,3.70228393]
[1768918521066,7.75739116,128.91,128.86,3.70228393]
[1768918521265,7.75674837,128.92,128.87,3.70228393]
[1768918521465,11.4590323,128.92,128.87,3.70228393]
[1768918521783,11.4590323,128.92,128.86,11.46258889]
[1768918521784,3.70228393,128.91,128.86,11.46258889]
[1768918526465,11.45970087,128.91,128.85,11.46310558]
[1768918526688,3.70228393,128.9,128.85,3.70228393]
[1768918527474,3.70228393,128.89,128.84,11.46355223]
[1768918527792,3.70228393,128.89,128.84,3.70228393]
[1768918528568,11.46088958,128.89,128.84,3.70228393]
[1768918529171,3.70228393,128.89,128.84,11.46375401]
[1768918531092,11.46088736,128.89,128.84,11.46375401]
[1768918531989,3.70228393,128.87,128.82,7.96252202]
[1768918532169,3.70228393,128.85,128.82,0.2]
[1768918532370,3.70228393,128.86,128.82,0.2]
[1768918532581,27.15498794,128.89,128.82,3.90228393]
[1768918532791,11.46088736,128.89,128.84,3.70228393]
[1768918535692,11.46088736,128.89,128.85,3.70228393]
[1768918536196,11.46088736,128.89,128.84,3.70228393]
[1768918537989,7.75826993,128.9,128.85,3.70228393]
[1768918538175,7.75826993,128.9,128.86,3.70228393]
[1768918540089,11.46055386,128.9,128.85,3.70228393]
[1768918541696,3.70228393,128.88,128.82,7.96256574]
[1768918541915,3.70228393,128.87,128.82,11.66484967]
[1768918542074,3.70228393,128.88,128.83,3.70228393]
[1768918542375,3.70228393,128.87,128.82,3.90228393]
[1768918542576,3.70228393,128.88,128.82,3.90228393]
[1768918542793,3.70228393,128.87,128.82,3.90228393]
[1768918543374,11.46236065,128.87,128.82,3.90228393]
[1768918546293,3.70228393,128.86,128.82,0.2]
[1768918546594,3.70228393,128.85,128.82,0.2]
[1768918547191,11.46236065,128.87,128.82,3.90228393]
[1768918547386,5.2097354,128.86,128.82,3.90228393]
[1768918547583,5.2097354,128.86,128.82,11.66501367]
[1768918547904,5.2097354,128.86,128.83,3.70228393]
[1768918548085,12.97014799,128.86,128.82,0.2]
[1768918548288,7.76041259,128.86,128.82,3.90228393]
[1768918549901,11.46212127,128.87,128.82,3.90228393]
[1768918550100,5.20970703,128.86,128.82,3.90228393]
[1768918550504,125.63969516,128.89,128.82,3.90228393]
[1768918550505,3.70228393,128.89,128.84,3.70228393]
[1768918550802,11.45993098,128.91,128.86,3.70228393]
[1768918550980,5.21107258,128.9,128.86,3.70228393]
[1768918551389,5.21107258,128.9,128.82,27.36937499]
[1768918551589,5.21107258,128.9,128.86,3.70228393]
[1768918551897,7.75802502,128.9,128.86,3.67228393]
[1768918552101,11.45990905,128.91,128.86,3.67228393]
[1768918552287,5.21407763,128.9,128.86,3.67228393]
[1768918553083,11.45990905,128.91,128.86,3.67228393]
[1768918553287,5.2155986,128.9,128.87,3.70228393]
[1768918555984,11.45929952,128.92,128.87,3.70228393]
[1768918556186,5.21695096,128.91,128.87,3.70228393]
[1768918557482,5.21695096,128.91,128.88,3.70228393]
[1768918558696,12.97437609,128.91,128.88,3.70228393]
[1768918558893,5.21695096,128.9,128.87,3.70228393]
[1768918559596,5.21695096,128.9,128.85,7.76065423]
[1768918559785,5.21695096,128.9,128.87,3.70228393]
[1768918559982,5.21695096,128.9,128.87,3.67228393]
[1768918560689,7.75742513,128.91,128.84,27.16494151]
[1768918560890,5.22062031,128.9,128.87,3.70228393]
[1768918561284,5.22062031,128.9,128.86,3.70228393]
[1768918561486,5.22062031,128.9,128.84,7.76156473]
[1768918561688,5.22062031,128.9,128.86,3.70228393]
[1768918563688,12.97859999,128.9,128.87,3.70228393]
[1768918563907,7.75797968,128.9,128.86,3.70228393]
[1768918565195,5.22158402,128.89,128.85,3.70228393]
[1768918565602,8.92386795,128.89,128.84,3.70228393]
[1768918565798,12.98086876,128.88,128.83,3.70228393]
[1768918566003,11.46156867,128.88,128.83,3.70228393]
[1768918566198,7.75928474,128.88,128.83,3.70228393]
[1768918566415,3.70228393,128.9,128.85,3.70228393]
[1768918566711,5.22266744,128.89,128.85,3.70228393]
[1768918567314,8.92495137,128.88,128.83,3.70228393]
[1768918567521,3.70228393,128.88,128.83,3.70228393]
[1768918568516,7.75975789,128.87,128.83,3.70228393]
[1768918569590,7.75944655,128.88,128.84,3.70228393]
[1768918570950,7.75882538,128.89,128.85,3.70228393]
[1768918571098,5.22143108,128.88,128.85,3.70228393]
[1768918571711,5.22143108,128.88,128.84,3.70228393]
[1768918572316,5.22143108,128.88,128.82,7.96260014]
[1768918572514,5.22143108,128.88,128.84,3.70228393]
[1768918574117,3.70228393,128.87,128.82,0.2]
[1768918574319,3.70228393,128.86,128.82,0.2]
[1768918575705,8.92259919,128.85,128.82,0.2]
[1768918575914,3.70228393,128.86,128.82,0.2]
[1768918576226,12.98128027,128.85,128.82,0.2]
[1768918576396,7.7612603,128.85,128.82,0.2]
[1768918577616,11.46354423,128.85,128.82,0.2]
[1768918579131,7.76078973,128.86,128.82,3.90228393]
[1768918579345,7.75997807,128.87,128.83,3.70228393]
[1768918579506,3.70228393,128.88,128.84,3.70228393]
[1768918579507,5.21816822,128.86,128.84,3.70228393]
[1768918579813,7.75944479,128.88,128.84,3.70228393]
[1768918580021,5.21824305,128.87,128.84,3.70228393]
[1768918580316,5.21824305,128.87,128.85,3.70228393]
[1768918580518,7.7585538,128.89,128.85,3.70228393]
[1768918580821,5.22002554,128.88,128.85,3.70228393]
[1768918581832,5.22002554,128.88,128.84,3.70228393]
[1768918582397,12.97964057,128.88,128.84,3.70228393]
[1768918582613,7.75961503,128.88,128.84,3.70228393]
[1768918583027,11.46253744,128.89,128.84,3.7037164]
[1768918583240,5.22008334,128.88,128.84,3.7037164]
[1768918584405,5.22008334,128.88,128.85,3.7037164]
[1768918586421,5.22008334,128.88,128.86,3.7037164]
[1768918586625,11.46156763,128.91,128.86,3.7037164]
[1768918586812,5.2186188,128.9,128.86,3.7037164]
[1768918587142,5.2186188,128.9,128.87,3.7037164]
[1768918590119,12.97663609,128.9,128.84,7.76131919]
[1768918590321,7.75801729,128.9,128.86,3.7037164]
[1768918590519,7.75801729,128.9,128.84,7.76131919]
[1768918590714,11.46173369,128.9,128.85,3.7037164]
[1768918590915,3.7037164,128.89,128.84,3.7037164]
[1768918591536,30.85661344,128.9,128.84,3.7037164]
[1768918591825,8.92091834,128.89,128.84,3.7037164]
[1768918592030,3.7037164,128.89,128.84,3.7037164]
[1768918592927,3.7037164,128.89,128.83,3.7037164]
[1768918593923,11.4626884,128.89,128.83,11.46586721]
[1768918594431,11.4626884,128.89,128.84,3.7037164]
[1768918601042,7.758972,128.89,128.84,3.7037164]
[1768918603142,5.21989342,128.88,128.84,3.7037164]
[1768918606740,12.97908068,128.88,128.84,3.7037164]
[1768918607042,7.75918726,128.88,128.84,3.7037164]
[1768918608550,11.46290366,128.88,128.82,3.9037164]
[1768918608749,8.92839649,128.87,128.82,3.9037164]
[1768918608957,3.7037164,128.87,128.82,3.9037164]
[1768918609454,30.86079316,128.88,128.82,3.9037164]
[1768918609626,5.22473009,128.87,128.82,3.9037164]
[1768918610136,5.22473009,128.87,128.83,3.7037164]
[1768918611246,12.98450252,128.87,128.83,3.7037164]
[1768918611448,7.75977243,128.87,128.83,3.7037164]
[1768918611831,7.75945026,128.88,128.83,3.7037164]
[1768918612060,5.22480356,128.87,128.84,3.7037164]
[1768918612347,5.22480356,128.87,128.83,3.7037164]
[1768918613144,12.98475599,128.87,128.83,3.7037164]
[1768918613346,7.75995243,128.87,128.83,3.7037164]
[1768918613947,11.46366883,128.87,128.82,0.2]
[1768918614253,11.46366883,128.87,128.82,3.9037164]
[1768918615247,5.22637789,128.86,128.82,3.9037164]
[1768918616560,16.69059059,128.86,128.82,0.2]
[1768918616747,5.22527092,128.85,128.82,0.2]
[1768918617145,3.7037164,128.85,128.82,0.2]
[1768918617436,5.22516758,128.84,128.82,0.2]
[1768918618237,8.92888398,128.84,128.82,0.2]
[1768918618436,3.7037164,128.84,128.82,0.2]
[1768918619350,8.925201,128.83,128.81,0.2]
[1768918619559,3.7037164,128.83,128.81,0.2]
[1768918620030,11.46530968,128.84,128.81,0.2]
[1768918620230,5.22180711,128.83,128.81,0.2]
[1768918620732,8.92552351,128.83,128.81,0.2]
[1768918621052,3.7037164,128.83,128.81,0.2]
[1768918621255,3.7037164,128.84,128.81,0.2]
[1768918621450,5.22055503,128.83,128.81,0.2]
[1768918622151,3.7037164,128.84,128.81,0.2]
[1768918622753,3.7037164,128.83,128.81,0.2]
[1768918622962,3.7037164,128.83,128.78,3.9037164]
[1768918622963,3.7037164,128.81,128.78,0.2]
[1768918623158,3.7037164,128.79,128.76,0.2]
[1768918623347,3.7037164,128.8,128.76,0.2]
[1768918623948,3.7037164,128.77,128.75,0.2]
[1768918624150,5.21653401,128.79,128.74,0.2]
[1768918624151,5.34408856,128.79,128.74,0.2]
[1768918624465,3.7037164,128.76,128.74,0.2]
[1768918624846,3.7037164,128.76,128.73,1e-08]
[1768918625166,3.7037164,128.74,128.72,0.2]
[1768918625339,19.41767342,128.75,128.68,1e-08]
[1768918625540,9.04780496,128.69,128.66,1e-08]
[1768918625756,3.7037164,128.67,128.56,77.02]
[1768918626056,3.7037164,128.66,128.6,3.7037164]
[1768918626365,30.0,128.65,128.57,7.77752408]
[1768918626665,30.0,128.65,128.61,3.7037164]
[1768918627049,30.0,128.65,128.56,17.02]
[1768918627238,7.77091632,128.69,128.58,19.44307929]
[1768918627443,7.77091632,128.69,128.57,7.77786419]
[1768918627444,30.0,128.63,128.6,3.7037164]
[1768918627648,3.7037164,128.64,128.57,7.77786419]
[1768918627860,17.02,128.68,128.6,3.7037164]
[1768918627861,3.7037164,128.65,128.6,3.7037164]
[1768918628053,17.02,128.68,128.6,3.7037164]
[1768918628257,17.02,128.68,128.55,17.02]
[1768918628463,3.7037164,128.64,128.55,17.02]
[1768918628655,3.7037164,128.62,128.56,3.7037164]
[1768918628868,3.7037164,128.62,128.55,17.02]
[1768918628869,3.6437164,128.62,128.55,17.02]
[1768918629056,17.02,128.64,128.55,17.02]
[1768918629243,7.77604976,128.6,128.52,7.78087778]
[1768918629565,3.7037164,128.57,128.51,17.02]
[1768918629743,47.93989057,128.6,128.55,3.7037164]
[1768918630162,47.93989057,128.6,128.51,17.02]
[1768918630359,7.77418446,128.64,128.59,3.7037164]
[1768918630557,27.20005854,128.68,128.63,3.7037164]
[1768918630766,27.20005854,128.68,128.64,3.7037164]
[1768918631054,38.84796242,128.71,128.65,3.7037164]
[1768918631055,7.77000777,128.7,128.65,3.7037164]
[1768918631255,7.77000777,128.7,128.57,5.34408856]
[1768918631256,7.77000777,128.7,128.66,3.7037164]
[1768918631662,3.7037164,128.69,128.61,7.77534796]
[1768918631842,3.7037164,128.69,128.64,3.7037164]
[1768918632042,3.7037164,128.68,128.63,3.7037164]
[1768918632243,3.7037164,128.68,128.59,19.44069751]
[1768918632444,3.7037164,128.69,128.63,3.7037164]
[1768918632850,9.12258877,128.69,128.64,9.12258877]
[1768918633047,19.42199362,128.73,128.68,9.12258877]
[1768918633265,17.02,128.76,128.69,9.12258877]
[1768918633460,9.12258877,128.72,128.64,7.77310106]
[1768918633659,9.12258877,128.72,128.62,19.4358086]
[1768918633660,9.12258877,128.73,128.67,9.12258877]
[1768918633859,9.12258877,128.73,128.68,9.12258877]
[1768918634659,9.12258877,128.74,128.68,9.12258877]
[1768918635053,9.12258877,128.75,128.7,9.12258877]
[1768918635242,19.41477097,128.77,128.72,9.12258877]
[1768918635243,9.12258877,128.77,128.72,9.12258877]
[1768918635447,9.12258877,128.77,128.69,7.77028784]
[1768918635448,17.02,128.78,128.73,9.12258877]
[1768918635753,7.76540758,128.78,128.73,9.12258877]
[1768918636061,16.88799635,128.78,128.73,9.12258877]
[1768918636265,9.12258877,128.75,128.69,9.12258877]
[1768918636576,9.12258877,128.73,128.68,9.12258877]
[1768918636754,9.12258877,128.74,128.68,9.12258877]
[1768918637269,9.12258877,128.73,128.68,9.12258877]
[1768918637452,9.12258877,128.73,128.67,9.12258877]
[1768918637972,9.12258877,128.7,128.62,19.43675669]
[1768918638154,9.12258877,128.71,128.65,9.12258877]
[1768918638671,9.12258877,128.71,128.65,16.89536252]
[1768918638868,9.12258877,128.72,128.65,7.77277375]
[1768918639071,9.12258877,128.71,128.65,16.89536252]
[1768918639368,9.12258877,128.71,128.65,9.12258877]
[1768918640471,7.76854275,128.73,128.67,9.12258877]
[1768918640655,16.89113152,128.73,128.67,9.12258877]
[1768918641260,13.11133299,128.75,128.67,9.12258877]
[1768918641464,5.68609578,128.74,128.68,9.12258877]
[1768918641776,16.8898332,128.75,128.69,9.12258877]
[1768918642080,14.80904902,128.74,128.68,9.12258877]
[1768918642381,9.12258877,128.73,128.67,9.12258877]
[1768918642549,9.12258877,128.73,128.67,16.89440576]
[1768918642874,9.1161523,128.73,128.67,16.88796929]
[1768918643670,7.76780411,128.74,128.67,16.88796929]
[1768918643979,16.88395641,128.74,128.68,9.1161523]
[1768918644164,16.88322174,128.75,128.68,9.1161523]
[1768918644487,5.68853656,128.74,128.69,9.1161523]
[1768918644778,16.88322174,128.75,128.69,9.1161523]
[1768918644979,5.6888741,128.74,128.69,9.1161523]
[1768918645153,16.88322174,128.75,128.69,9.1161523]
[1768918645355,5.68977173,128.74,128.69,9.1161523]
[1768918645581,9.1161523,128.73,128.66,17.02]
[1768918645756,9.1161523,128.71,128.65,16.88894279]
[1768918646978,16.88563983,128.71,128.65,7.77279049]
[1768918647156,9.1161523,128.7,128.65,7.77279049]
[1768918647356,16.88563983,128.71,128.65,16.88894279]
[1768918648256,9.1161523,128.67,128.62,7.77447682]
[1768918648692,9.1161523,128.67,128.62,16.89062912]
[1768918648863,9.1161523,128.68,128.62,16.89062912]
[1768918649471,9.1161523,128.67,128.62,7.77447682]
[1768918650059,9.1161523,128.67,128.62,16.89062912]
[1768918650474,9.1161523,128.67,128.61,33.9114371]
[1768918650868,9.1161523,128.66,128.61,17.02]
[1768918651185,9.1161523,128.65,128.61,17.02]
[1768918651481,9.1161523,128.65,128.6,7.77579911]
[1768918653063,19.42870558,128.68,128.6,16.89195141]
[1768918653064,7.77248977,128.66,128.6,16.89195141]
[1768918653269,16.88864207,128.66,128.6,16.89195141]
[1768918653505,9.1161523,128.65,128.6,7.77579911]
[1768918653979,16.88864207,128.66,128.6,16.89195141]
[1768918654186,9.1161523,128.66,128.6,7.77579911]
[1768918654386,9.1161523,128.66,128.6,16.89195141]
[1768918654865,27.19291429,128.71,128.62,9.1161523]